bitfinex/quotes_ETHUSD_20260305
["timestamp","ask_amount","ask_price","bid_price","bid_amount"]
[1772712951377,4.89646816,2131.0,2130.4,0.82932256]
[1772712951577,2.76241003,2130.9,2130.5,0.00109999]
[1772712951773,5.10532638,2130.8,2130.5,0.00109999]
[1772712952989,2.13405813,2130.7,2130.5,0.00109999]
[1772712953307,2.97226825,2130.8,2130.6,0.00109999]
[1772712953505,2.97226825,2130.8,2130.3,0.82877449]
[1772712954207,5.10632638,2130.8,2130.3,2.00231454]
[1772712954503,3.93305813,2130.8,2130.3,2.00231454]
[1772712954685,1.17325343,2130.9,2130.4,0.82698637]
[1772712955009,4.62801082,2131.3,2130.6,0.82588638]
[1772712955010,1.801,2131.3,2130.6,0.82588638]
[1772712955192,2.13405813,2131.4,2130.8,0.82588638]
[1772712955193,5.1080414,2131.4,2130.8,0.82588638]
[1772712955383,3.93505813,2131.4,2130.8,0.82588638]
[1772712955710,0.04684294,2131.3,2130.8,0.82588638]
[1772712955906,5.10800976,2131.4,2130.9,1.17321319]
[1772712956117,5.10800976,2131.4,2130.9,1.17431318]
[1772712956317,4.69259431,2131.5,2130.9,1.17431318]
[1772712956318,0.001,2131.5,2131.0,0.87299906]
[1772712956619,0.001,2131.5,2131.2,0.82497275]
[1772712958511,0.001,2131.5,2131.2,1.99801794]
[1772712958819,0.001,2131.5,2131.1,0.00109999]
[1772712959024,0.001,2131.5,2131.2,0.00109999]
[1772712959220,0.001,2131.5,2130.8,4.69300667]
[1772712959221,2.13505813,2131.5,2130.8,1.17324401]
[1772712959392,2.18090107,2131.4,2130.9,0.00109999]
[1772712960629,1.172993,2131.3,2130.7,0.82119232]
[1772712960828,2.18090107,2131.2,2130.4,7.03401591]
[1772712961128,2.18090107,2131.2,2130.5,1.17343346]
[1772712962018,2.18090107,2131.2,2130.6,0.00109999]
[1772712962219,0.04684294,2131.2,2130.6,0.82032925]
[1772712962516,5.1110415,2131.4,2130.9,1.17321319]
[1772712962721,5.1110415,2131.4,2130.7,0.04693293]
[1772712962722,2.13405813,2131.2,2130.7,0.04693293]
[1772712962926,2.97698337,2131.4,2130.2,0.81823018]
[1772712962927,2.18090107,2131.1,2130.2,0.81823018]
[1772712963091,2.18090107,2131.1,2130.2,1.9918207]
[1772712963092,2.13405813,2130.9,2130.2,1.9918207]
[1772712963290,2.18090107,2130.9,2130.2,1.9918207]
[1772712963522,2.13405813,2130.9,2130.3,0.04694174]
[1772712963724,2.13405813,2130.9,2130.3,0.00109999]
[1772712963910,2.18090107,2130.9,2130.3,0.00109999]
[1772712964893,3.30732638,2130.8,2130.3,0.00109999]
[1772712965706,2.13405813,2130.7,2130.1,1.17364577]
[1772712965921,2.13405813,2130.7,2130.2,0.00109999]
[1772712966222,2.13405813,2130.7,2130.3,0.00109999]
[1772712966419,2.13405813,2130.7,2129.8,2.03589549]
[1772712966634,2.13405813,2131.2,2129.9,0.8162649]
[1772712966808,0.001,2131.3,2130.7,1.98744439]
[1772712967018,0.001,2131.3,2130.8,0.81412107]
[1772712967353,0.001,2131.5,2130.8,0.00109999]
[1772712967523,2.13405813,2131.8,2130.9,0.81312107]
[1772712968104,2.13405813,2131.8,2131.0,0.00109999]
[1772712968311,2.13405813,2131.8,2130.9,0.81312107]
[1772712969325,2.13405813,2131.6,2131.0,0.00109999]
[1772712969533,2.13405813,2131.6,2130.6,0.81352521]
[1772712969745,1.17276049,2131.8,2130.7,0.85937897]
[1772712970030,3.30681862,2131.8,2130.7,0.85937897]
[1772712970329,3.30681862,2131.8,2130.8,0.00109999]
[1772712970330,2.13405813,2131.6,2130.8,0.00109999]
[1772712970504,2.13405813,2131.4,2130.7,0.00109999]
[1772712971119,2.13405813,2131.3,2130.7,0.00109999]
[1772712971316,2.13405813,2131.3,2130.8,0.00109999]
[1772712971510,3.30710617,2131.2,2130.7,0.00109999]
[1772712971712,3.30710617,2131.2,2130.6,0.0011]
[1772712971713,2.13405813,2131.0,2130.6,0.0011]
[1772712972007,2.76042672,2131.1,2130.1,0.80915721]
[1772712972008,2.13405813,2130.8,2130.1,1.17361901]
[1772712972207,2.13405813,2130.8,2130.2,0.04804393]
[1772712972434,3.38266538,2131.2,2130.2,0.85720114]
[1772712972435,2.13405813,2131.1,2130.2,0.85720114]
[1772712972746,3.30709447,2131.3,2130.4,0.80915721]
[1772712972916,4.89477583,2131.2,2130.4,0.80915721]
[1772712973102,2.13405813,2131.2,2130.4,0.80915721]
[1772712973302,2.13405813,2131.2,2130.5,0.04693733]
[1772712973505,3.30713377,2131.2,2130.6,1.17337839]
[1772712973842,2.97803463,2131.3,2130.8,5.0]
[1772712974140,2.13405813,2131.4,2130.8,5.0]
[1772712974340,2.13405813,2131.4,2130.9,0.00109999]
[1772712975313,2.13405813,2131.2,2131.0,0.00109999]
[1772712975508,2.13405813,2131.2,2130.8,5.0]
[1772712975715,3.30712316,2131.2,2130.8,5.0]
[1772712976455,3.30712316,2131.2,2130.9,0.00109999]
[1772712979354,2.01069057,2131.1,2130.9,0.00109999]
[1772712979652,2.01069057,2131.1,2130.8,5.0]
[1772712979953,3.1838429,2131.1,2130.9,0.00109999]
[1772712980950,2.01069057,2131.0,2130.2,1.17356652]
[1772712981248,3.81669057,2131.0,2130.2,2.04349074]
[1772712981444,1.806,2131.0,2130.4,2.04239075]
[1772712982237,1.806,2131.0,2130.2,0.00109999]
[1772712982238,1.17317656,2131.0,2130.5,2.04349074]
[1772712982447,4.98976497,2131.2,2130.5,2.04239075]
[1772712982649,3.18376497,2131.2,2130.6,0.00109999]
[1772712982833,4.98976497,2131.2,2130.7,0.00109999]
[1772712983026,1.1730744,2131.2,2130.6,2.04349074]
[1772712983227,1.1730744,2131.2,2130.6,2.04239075]
[1772712983750,3.18376497,2131.2,2130.4,2.04349074]
[1772712983950,3.18376497,2131.2,2130.5,0.00109999]
[1772712984150,3.93614455,2131.1,2130.5,1.17453345]
[1772712984452,1.17315248,2131.1,2130.5,3.2169242]
[1772712985350,3.18378343,2131.2,2130.5,3.2169242]
[1772712985554,2.7628212,2131.1,2130.6,0.00109999]
[1772712985964,4.99078343,2131.2,2130.6,0.00109999]
[1772712986260,4.99074077,2131.2,2130.7,0.00109999]
[1772712986466,4.99074077,2131.2,2130.6,0.00109999]
[1772712986637,4.99074077,2131.2,2130.6,2.04349074]
[1772712987827,3.18374077,2131.2,2130.6,2.04349074]
[1772712988058,4.99174077,2131.2,2130.6,2.04349074]
[1772712988531,2.76415665,2131.1,2130.6,2.04349074]
[1772712988857,2.76415665,2131.1,2130.7,0.00109999]
[1772712988858,4.78601348,2131.1,2130.7,0.00109999]
[1772712989029,2.02185683,2131.1,2130.6,0.00109999]
[1772712989756,2.02185683,2131.1,2130.5,1.17339761]
[1772712990539,1.17315814,2131.0,2130.5,1.17339761]
[1772712991553,1.17315814,2131.0,2130.4,3.3445285]
[1772712991746,2.02185683,2130.9,2130.4,3.3445285]
[1772712992151,2.02185683,2130.9,2130.3,1.17349786]
[1772712992337,2.02185683,2130.9,2130.4,2.17108544]
[1772712993963,3.19489186,2131.3,2130.5,2.21802277]
[1772712994137,2.76413075,2131.2,2130.5,2.21802277]
[1772712994341,4.78598758,2131.2,2130.5,2.21802277]
[1772712994538,2.02185683,2131.2,2130.5,2.21802277]
[1772712995870,2.02185683,2131.2,2130.6,1.17337839]
[1772712996074,2.02185683,2131.2,2130.7,0.04693293]
[1772712996379,3.19490868,2131.2,2130.7,0.04693293]
[1772712997082,2.02185683,2131.1,2130.7,0.04693293]
[1772712999578,3.19500352,2131.1,2130.7,0.04693293]
[1772712999754,3.19500352,2131.1,2130.0,2.17108544]
[1772712999755,2.02185683,2130.9,2130.0,2.17108544]
[1772712999935,5.19019613,2131.0,2130.0,2.17108544]
[1772712999936,4.79016069,2130.8,2130.1,2.17108544]
[1772713000140,2.02185683,2130.8,2130.1,2.17108544]
[1772713000446,4.79004641,2130.7,2130.1,2.17108544]
[1772713000651,2.02185683,2130.5,2129.8,2.17108544]
[1772713000856,4.78979053,2130.4,2129.8,2.17108544]
[1772713001039,2.02185683,2130.3,2129.8,2.17108544]
[1772713001951,1.17358431,2130.3,2129.8,2.2180382]
[1772713003071,3.19544114,2130.3,2129.8,2.17108544]
[1772713004581,3.19544114,2130.3,2129.4,3.34511781]
[1772713004582,2.02185683,2130.2,2129.4,3.34511781]
[1772713005353,2.02185683,2130.2,2129.4,2.17108544]
[1772713005548,2.02185683,2130.2,2129.4,3.34511618]
[1772713006885,3.19551064,2130.1,2129.4,3.34511618]
[1772713007784,2.02185683,2130.0,2129.4,2.17108544]
[1772713007958,2.02185683,2130.0,2129.5,2.21804482]
[1772713008554,2.02185683,2130.0,2129.5,2.17108544]
[1772713008856,2.20092742,2129.8,2129.3,2.20463379]
[1772713009161,2.20092742,2129.8,2129.0,2.20463379]
[1772713009361,2.20092742,2129.8,2128.9,2.20463379]
[1772713009362,2.20092742,2129.7,2128.9,2.20463379]
[1772713010454,1.812,2129.8,2128.7,0.003]
[1772713010455,2.20092742,2129.4,2128.7,0.003]
[1772713010694,1.812,2129.8,2128.7,0.003]
[1772713010695,2.20092742,2129.1,2128.7,0.003]
[1772713010901,1.17426021,2129.0,2128.7,0.003]
[1772713011185,1.17426021,2129.0,2128.4,2.21063379]
[1772713011186,1.17424699,2129.1,2128.4,3.38521665]
[1772713011352,3.37517441,2129.1,2128.4,2.21063379]
[1772713011551,2.20092742,2129.0,2128.4,3.38521301]
[1772713011757,2.20092742,2129.0,2128.4,0.006]
[1772713012426,2.20092742,2129.0,2128.4,2.21063379]
[1772713012687,2.20092742,2129.0,2128.4,0.006]
[1772713012908,2.20092742,2128.8,2128.4,0.006]
[1772713015266,1.1744257,2128.7,2128.4,0.006]
[1772713015675,1.17428566,2129.0,2128.4,2.21063379]
[1772713016061,3.37521308,2129.0,2128.4,2.21063379]
[1772713016487,2.20092742,2128.9,2128.4,0.006]
[1772713017478,3.37529795,2128.8,2128.4,0.006]
[1772713017708,2.20092742,2128.7,2128.2,0.003]
[1772713018883,4.01392742,2128.7,2128.2,0.003]
[1772713019394,3.37538598,2128.7,2128.2,0.003]
[1772713020777,2.20092742,2128.6,2128.2,0.003]
[1772713021092,7.11959509,2129.0,2128.2,0.003]
[1772713021093,3.37507733,2129.2,2128.2,2.20763379]
[1772713021301,5.01326777,2129.3,2128.2,0.003]
[1772713021302,2.20092742,2129.0,2128.2,0.003]
[1772713021600,2.20092742,2128.7,2128.2,0.003]
[1772713021988,4.01392742,2128.7,2128.2,0.003]
[1772713022481,2.20092742,2128.6,2128.2,0.003]
[1772713023197,1.813,2128.7,2128.2,0.003]
[1772713023507,1.17448087,2128.6,2128.2,0.003]
[1772713024108,2.20092742,2128.4,2127.5,2.20463379]
[1772713024712,2.20092742,2128.4,2127.6,2.20463379]
[1772713025410,3.37554684,2128.4,2127.7,1.17497767]
[1772713025576,3.37554684,2128.4,2127.7,3.37961146]
[1772713026010,2.20092742,2128.3,2127.7,2.20463379]
[1772713026305,2.20092742,2128.3,2127.6,1.17498967]
[1772713026489,2.20092742,2128.3,2127.6,3.37962346]
[1772713026809,2.20092742,2128.3,2127.6,2.20463379]
[1772713027484,2.20092742,2128.3,2127.7,2.20463379]
[1772713027688,1.813,2128.4,2127.7,2.20463379]
[1772713027891,2.20092742,2127.7,2126.7,0.003]
[1772713028088,2.20092742,2127.3,2126.7,0.003]
[1772713028593,2.20092742,2127.3,2126.7,1.17851689]
[1772713028796,4.01392742,2127.6,2126.7,3.38315068]
[1772713029003,4.01392742,2127.6,2126.7,0.003]
[1772713029004,2.20092742,2127.5,2126.7,0.003]
[1772713029203,2.20092742,2127.5,2126.3,0.80980318]
[1772713029204,2.20092742,2127.3,2126.3,0.80980318]
[1772713029424,2.20092742,2127.0,2126.3,0.80980318]
[1772713029578,2.20092742,2126.8,2126.3,0.80980318]
[1772713029779,2.20092742,2126.8,2124.7,1.6713231]
[1772713030116,2.20092742,2125.8,2124.8,2.20463379]
[1772713030322,2.20092742,2126.0,2124.8,2.20463379]
[1772713030608,2.20092742,2126.3,2124.8,2.20463379]
[1772713031186,2.20092742,2126.2,2124.8,2.20463379]
[1772713031592,2.20092742,2126.0,2124.9,2.20463379]
[1772713032361,2.20092742,2126.0,2122.7,5.72038317]
[1772713032362,2.20092742,2125.1,2123.2,2.2848016]
[1772713032637,2.20092742,2125.1,2122.7,2.20463379]
[1772713032638,2.42189227,2124.5,2122.7,2.20463379]
[1772713032790,2.20092742,2124.6,2122.7,2.20463379]
[1772713033404,2.20092742,2124.4,2122.7,2.20463379]
[1772713033604,2.20092742,2124.4,2122.9,2.20463379]
[1772713033824,2.20092742,2124.3,2122.9,2.20463379]
[1772713034588,3.94392742,2124.6,2122.9,2.20463379]
[1772713034899,2.20092742,2124.5,2122.9,2.20463379]
[1772713035319,2.20092742,2125.0,2123.1,2.20463379]
[1772713035727,2.43839389,2125.2,2123.3,2.20463379]
[1772713035901,2.43839389,2125.2,2123.7,2.20463379]
[1772713035902,2.20092742,2125.2,2123.7,2.20463379]
[1772713036498,3.37728747,2125.2,2123.7,2.20463379]
[1772713036922,3.37728747,2125.2,2123.4,0.065536]
[1772713036923,3.69297001,2125.6,2123.9,2.20463379]
[1772713037124,2.20092742,2125.5,2123.9,2.20463379]
[1772713037853,2.20092742,2125.3,2124.0,1.17702448]
[1772713038405,2.20092742,2125.3,2124.1,2.20463379]
[1772713038603,2.20092742,2125.3,2124.2,2.20463379]
[1772713039736,0.31589368,2125.6,2124.4,2.20839534]
[1772713039951,0.31589368,2125.6,2124.6,2.20839534]
[1772713040224,2.21261073,2126.3,2124.9,2.20839534]
[1772713040627,2.21261073,2126.3,2125.1,2.20839534]
[1772713040830,3.81450623,2126.8,2125.1,2.20839534]
[1772713041035,3.81450623,2126.8,2124.8,0.065536]
[1772713041036,2.21261073,2126.8,2125.3,2.20839534]
[1772713041222,3.38814089,2126.7,2125.3,2.20839534]
[1772713041411,2.21261073,2126.7,2125.3,2.20839534]
[1772713041610,2.21261073,2126.7,2125.5,2.20839534]
[1772713041809,3.38817976,2126.7,2125.6,1.1761385]
[1772713042401,2.21261073,2126.6,2125.6,1.1761385]
[1772713043036,1.17550175,2126.8,2125.6,1.1761385]
[1772713043225,1.17550175,2126.8,2125.6,3.38453384]
[1772713043626,1.17550175,2126.8,2125.6,3.36009693]
[1772713043936,2.21261073,2126.8,2125.7,2.20839534]
[1772713044113,1.49162155,2126.9,2125.7,2.20839534]
[1772713044114,0.31618557,2126.9,2125.7,2.20839534]
[1772713044835,0.31618557,2126.9,2125.9,2.20839534]
[1772713045228,3.38766813,2127.6,2126.4,2.20839534]
[1772713045426,2.21261073,2127.6,2126.4,2.20839534]
[1772713045631,3.38753283,2127.9,2126.4,2.20839534]
[1772713045825,2.21261073,2127.6,2126.4,1.17567384]
[1772713046025,3.61337156,2127.7,2126.3,6.70623502]
[1772713046026,2.21261073,2127.3,2126.3,1.17571904]
[1772713047853,2.21261073,2127.3,2126.1,4.70344229]
[1772713047854,1.17525385,2127.2,2126.1,1.1758619]
[1772713048419,2.01791162,2127.1,2126.1,1.1758619]
[1772713048614,2.01791162,2127.1,2125.5,4.70473637]
[1772713048615,2.01791162,2127.0,2125.7,1.17608317]
[1772713049423,2.01791162,2127.0,2125.8,2.2536841]
[1772713049991,1.17541962,2126.9,2125.9,1.17597252]
[1772713050122,2.01791162,2126.8,2125.9,1.17597252]
[1772713051762,1.17541962,2126.9,2125.9,1.17597252]
[1772713052054,4.70154509,2127.0,2125.9,1.17597252]
[1772713052243,2.01791162,2126.9,2125.9,1.17597252]
[1772713052834,2.01791162,2126.9,2125.7,4.70426885]
[1772713053753,0.001,2126.6,2125.7,6.91091184]
[1772713053953,0.001,2126.6,2125.8,0.04704111]
[1772713054152,0.001,2126.6,2125.9,1.17597252]
[1772713054450,0.001,2126.6,2126.0,0.04703668]
[1772713055140,0.001,2126.6,2126.0,2.25367967]
[1772713055339,2.01791162,2127.7,2126.2,2.20664299]
[1772713055538,2.01791162,2127.3,2125.9,3.38261551]
[1772713055770,2.01791162,2127.3,2126.0,2.20664299]
[1772713055940,2.01791162,2127.5,2126.2,2.20664299]
[1772713056263,3.19305498,2127.4,2126.3,3.38239429]
[1772713056431,2.01791162,2127.3,2126.3,3.38239429]
[1772713056628,2.01791162,2127.3,2126.3,1.1757513]
[1772713056865,2.01791162,2127.3,2126.2,1.17577214]
[1772713057072,2.01791162,2127.3,2125.7,2.20664299]
[1772713057073,2.01791162,2127.2,2125.8,1.17602784]
[1772713057950,2.01791162,2127.4,2125.9,2.20664299]
[1772713058254,2.01791162,2127.2,2126.0,1.17591721]
[1772713058833,2.01791162,2127.0,2125.9,1.1759687]
[1772713060454,3.19333124,2126.9,2125.7,6.9105331]
[1772713061756,1.17541962,2126.9,2125.7,6.9105331]
[1772713061935,2.01791162,2126.8,2125.7,6.9105331]
[1772713062958,1.17553016,2126.7,2125.7,6.9105331]
[1772713063155,1.17553016,2126.7,2125.1,5.94281753]
[1772713063156,2.01791162,2126.6,2125.3,1.17627652]
[1772713063739,2.01791162,2126.6,2125.3,3.38291951]
[1772713063939,2.01791162,2126.6,2125.4,2.25369295]
[1772713064435,1.17553016,2126.7,2125.4,2.25369295]
[1772713064636,1.17553016,2126.7,2125.4,2.20664299]
[1772713064845,4.70212065,2126.8,2125.4,2.20664299]
[1772713064846,1.17551818,2126.8,2125.4,2.20664299]
[1772713065243,1.17551818,2126.8,2125.6,2.20664299]
[1772713065444,3.19337123,2126.9,2125.7,2.20664299]
[1772713065962,2.01791162,2126.8,2125.7,2.20664299]
[1772713066364,2.01791162,2126.8,2125.6,1.521]
[1772713066730,2.01791162,2126.8,2125.6,3.72764299]
[1772713067366,3.19349706,2126.6,2125.7,1.17608317]
[1772713068844,3.19349706,2126.6,2125.9,0.0011]
[1772713069233,6.91127718,2127.0,2125.9,0.0011]
[1772713069234,4.70200641,2126.8,2125.9,1.17707252]
[1772713069575,2.75431112,2126.7,2125.9,3.36021177]
[1772713069941,0.001,2126.7,2125.9,3.36021177]
[1772713070265,2.7550044,2126.7,2125.9,3.36021177]
[1772713070635,0.001,2126.7,2126.0,2.18313925]
[1772713070841,2.18342127,2126.9,2125.9,1.17707252]
[1772713071770,3.35884562,2126.9,2125.9,2.18423925]
[1772713071978,2.18342127,2126.8,2125.9,2.18423925]
[1772713072342,2.18342127,2126.8,2125.9,0.0011]
[1772713073765,2.18342127,2126.6,2125.9,0.0011]
[1772713075963,3.35906199,2126.5,2125.9,0.0011]
[1772713079166,2.18342127,2126.4,2125.9,0.0011]
[1772713080587,2.18342127,2126.8,2125.9,0.0011]
[1772713080957,2.18342127,2126.6,2125.9,0.0011]
[1772713081766,4.94004345,2126.5,2125.9,0.0011]
[1772713081982,2.18342127,2126.5,2125.9,0.0011]
[1772713082798,2.18342127,2126.3,2125.9,0.0011]
[1772713084026,1.17569601,2126.4,2125.9,0.0011]
[1772713084692,4.70278404,2126.5,2125.9,0.0011]
[1772713085085,2.20961734,2126.9,2125.9,0.0011]
[1772713085086,4.39303861,2126.9,2125.9,2.18423925]
[1772713085405,3.35887837,2126.9,2126.1,2.18313925]
[1772713085907,2.18342127,2126.8,2125.9,2.18423925]
[1772713086114,2.18342127,2126.8,2126.1,0.0011]
[1772713086295,3.35873037,2127.1,2126.2,2.18313925]
[1772713086643,4.7011173,2127.2,2125.6,0.0011]
[1772713086644,2.18342127,2127.2,2125.6,0.0011]
[1772713086783,2.18342127,2127.2,2125.1,3.35487107]
[1772713086784,2.18342127,2125.9,2125.1,1.17173182]
[1772713086989,2.18342127,2125.7,2124.6,2.18313925]
[1772713088190,2.18342127,2125.7,2124.7,0.04706546]
[1772713088491,2.18342127,2125.7,2124.6,2.18313925]
[1772713088693,1.1761385,2125.6,2124.7,1.1766367]
[1772713089603,3.35951269,2125.7,2124.7,3.35977595]
[1772713089787,3.35951269,2125.7,2124.8,0.04706325]
[1772713090110,3.35951269,2125.7,2124.4,4.7076468]
[1772713090111,2.18342127,2125.5,2124.4,1.17786114]
[1772713090800,2.18342127,2125.3,2124.5,1.17671076]
[1772713090997,2.18342127,2125.3,2124.6,0.04706768]
[1772713091305,2.18342127,2125.3,2124.4,1.17786297]
[1772713092013,1.17622829,2125.5,2124.5,2.18313925]
[1772713092717,3.35960365,2125.6,2124.6,1.17669208]
[1772713092895,3.35956423,2125.6,2124.6,1.17669208]
[1772713093222,4.70368021,2126.0,2124.7,2.18313925]
[1772713093223,2.18342127,2126.0,2124.7,2.18313925]
[1772713093421,0.04706325,2125.9,2124.7,2.18313925]
[1772713094096,2.18342127,2126.0,2124.8,2.2302025]
[1772713094296,1.17584008,2126.2,2125.0,2.18313925]
[1772713094590,1.17584008,2126.2,2125.1,2.23019585]
[1772713094921,2.18342127,2126.3,2125.3,2.18313925]
[1772713095117,1.17672673,2126.4,2125.4,2.23018921]
[1772713095318,0.001,2126.4,2125.4,2.23018921]
[1772713095822,3.3588274,2127.0,2125.4,2.23018921]
[1772713095994,0.04706325,2126.9,2125.4,2.18313925]
[1772713096809,2.18342127,2126.8,2125.4,2.18313925]
[1772713097011,1.17553016,2126.7,2125.5,3.35933308]
[1772713097318,3.35895143,2126.7,2125.5,3.35933308]
[1772713098718,2.18342127,2126.6,2125.5,1.17619383]
[1772713098936,1.17569601,2126.4,2125.4,2.00277203]
[1772713099133,1.17568199,2126.5,2125.4,2.00277203]
[1772713099429,1.17568199,2126.5,2125.6,2.00277203]
[1772713099728,1.17568199,2126.5,2125.7,0.04704332]
[1772713099910,1.17568199,2126.5,2125.3,6.70754737]
[1772713100244,1.2226324,2126.7,2125.4,2.00277203]
[1772713100999,1.2226324,2126.7,2125.6,2.00277203]
[1772713101934,3.26047511,2126.9,2125.6,2.00277203]
[1772713102234,3.26047511,2126.9,2125.2,4.70477534]
[1772713102235,2.08502205,2126.1,2125.1,1.17637375]
[1772713102432,2.1320853,2126.0,2125.1,1.17637375]
[1772713102604,2.08502205,2126.0,2125.1,1.17637375]
[1772713103207,3.26099457,2125.9,2124.9,4.70566091]
[1772713103409,2.08502205,2125.8,2124.9,4.70566091]
[1772713105662,1.17608317,2125.7,2124.7,1.17659039]
[1772713105937,2.08502205,2125.6,2124.7,1.17659039]
[1772713107961,1.17619383,2125.5,2124.6,1.17665372]
[1772713108111,2.08502205,2125.4,2124.6,1.17665372]
[1772713110752,1.17630452,2125.3,2124.4,0.0011]
[1772713111253,2.16902086,2125.2,2124.4,0.0011]
[1772713112045,2.16902086,2125.8,2124.5,2.03197995]
[1772713112249,2.16902086,2125.7,2124.5,2.03197995]
[1772713112768,2.16902086,2125.7,2124.4,1.17789755]
[1772713112769,2.16902086,2125.4,2124.4,1.17789755]
[1772713113629,2.16902086,2125.4,2124.4,0.0011]
[1772713114241,2.16902086,2125.4,2124.4,1.17790128]
[1772713114441,2.16902086,2125.2,2124.4,1.17790128]
[1772713114642,1.17641522,2125.1,2124.4,0.0011]
[1772713115742,3.345219,2125.5,2125.2,0.0011]
[1772713115927,3.39228225,2125.5,2125.2,0.0011]
[1772713116326,1.22326139,2125.5,2125.2,0.0011]
[1772713116734,4.75149801,2125.7,2125.2,0.0011]
[1772713117038,2.16902086,2125.6,2125.2,0.0011]
[1772713117234,2.16902086,2125.4,2124.6,1.17669208]
[1772713117932,1.22314642,2125.7,2124.7,2.03197995]
[1772713118166,3.39216728,2125.7,2124.7,2.03197995]
[1772713118329,3.39216728,2125.7,2124.4,0.0011]
[1772713118330,2.16902086,2125.1,2124.4,0.0011]
[1772713118844,2.16902086,2124.9,2124.4,0.0011]
[1772713120756,1.17658132,2124.8,2124.4,0.0011]
[1772713121443,1.1765695,2124.9,2124.4,0.0011]
[1772713122937,3.99202086,2125.2,2124.4,0.0011]
[1772713122938,1.17640355,2125.2,2124.4,0.0011]
[1772713123143,2.16902086,2125.1,2124.4,0.04817211]
[1772713123537,2.21608411,2125.0,2124.4,0.0011]
[1772713124062,2.16902086,2125.0,2124.4,0.0011]
[1772713124568,3.39248766,2125.2,2124.4,0.0011]
[1772713124735,1.17640355,2125.2,2124.4,2.03307995]
[1772713125154,1.17630452,2125.3,2124.5,1.17674746]
[1772713126071,1.17630452,2125.3,2124.6,0.04706768]
[1772713126275,1.17625251,2125.4,2124.6,2.03197995]
[1772713126772,1.17625251,2125.4,2124.7,0.04706546]
[1772713127143,1.17625251,2125.4,2124.8,1.17658132]
[1772713127467,3.34524981,2125.5,2124.8,1.17658132]
[1772713128150,2.21608411,2125.4,2124.5,1.17674746]
[1772713128773,2.21608411,2125.4,2124.6,0.0011]
[1772713129251,1.17630452,2125.3,2124.6,0.0011]
[1772713132257,1.17623449,2125.5,2124.7,2.08665358]
[1772713133171,1.1761738,2125.6,2124.8,3.2632349]
[1772713133384,1.22317089,2125.7,2124.8,3.2632349]
[1772713133677,1.17682402,2126.2,2125.0,2.08665358]
[1772713134470,3.20840318,2126.2,2125.0,2.08665358]
[1772713135047,2.03157916,2126.1,2125.0,2.08665358]
[1772713135244,1.17591721,2126.0,2125.1,1.17641522]
[1772713135674,1.17591721,2126.0,2125.1,3.2630688]
[1772713137982,3.20749637,2126.0,2125.1,3.2630688]
[1772713138276,2.03157916,2125.9,2125.1,3.2630688]
[1772713140081,3.20758313,2125.9,2125.1,3.2630688]
[1772713140864,0.001,2126.2,2125.2,2.13370797]
[1772713141390,0.001,2126.2,2125.3,2.08665358]
[1772713141691,0.001,2126.5,2125.7,2.08665358]
[1772713141988,0.001,2126.5,2125.9,2.08665358]
[1772713142154,4.70041197,2127.5,2125.9,2.08665358]
[1772713142155,2.03157916,2127.4,2126.2,2.08665358]
[1772713143096,1.17508813,2127.5,2126.2,2.08665358]
[1772713143467,3.20659335,2127.7,2126.2,2.08665358]
[1772713143668,3.20656129,2127.7,2126.2,2.08665358]
[1772713143869,2.03157916,2127.7,2126.2,2.08665358]
[1772713144386,3.81389055,2127.9,2126.4,2.08665358]
[1772713144560,1.17489184,2127.9,2126.6,2.08665358]
[1772713144887,6.7308334,2128.0,2126.6,2.08665358]
[1772713144888,3.20642436,2128.0,2126.6,2.08665358]
[1772713145090,3.20719194,2128.4,2126.8,2.08665358]
[1772713145288,3.20718814,2128.4,2126.8,2.08665358]
[1772713145587,2.03257916,2128.4,2127.0,2.08665358]
[1772713145760,0.001,2128.4,2127.0,2.08665358]
[1772713146164,0.001,2128.4,2127.2,2.08665358]
[1772713146474,2.03257916,2128.4,2127.3,1.508]
[1772713146788,2.03257916,2128.4,2127.4,2.08665358]
[1772713146996,0.001,2128.4,2127.4,2.08665358]
[1772713147902,2.03257916,2128.4,2127.3,3.59465358]
[1772713148103,2.03257916,2128.4,2127.4,2.08665358]
[1772713148309,0.001,2128.4,2127.6,2.08665358]
[1772713148606,1.17561526,2128.4,2127.6,2.08665358]
[1772713148812,0.001,2128.4,2127.6,2.08665358]
[1772713149585,2.03157916,2128.7,2127.6,2.08665358]
[1772713150026,1.17435757,2128.9,2127.6,2.08665358]
[1772713150530,1.17435757,2128.9,2127.8,2.08665358]
[1772713152385,6.7286305,2129.0,2127.8,2.08665358]
[1772713152386,3.20587521,2129.0,2128.0,2.08665358]
[1772713153114,3.20571819,2129.3,2128.1,2.08665358]
[1772713153318,2.03157916,2129.3,2128.2,2.08665358]
[1772713153496,2.03157916,2129.8,2128.2,2.08665358]
[1772713153692,0.001,2128.7,2128.3,2.15218958]
[1772713153926,2.03157916,2129.5,2128.3,2.15218958]
[1772713154214,2.03157916,2130.0,2128.3,2.15218958]
[1772713154719,2.03157916,2129.9,2128.5,2.08665358]
[1772713154894,1.17374906,2130.0,2128.5,2.08665358]
[1772713155097,3.20532822,2130.0,2128.5,2.08665358]
[1772713155284,2.03157916,2130.0,2128.7,2.08665358]
[1772713155483,3.20528878,2130.0,2128.9,2.08665358]
[1772713155707,2.03157916,2129.9,2128.8,3.58965358]
[1772713156208,2.03157916,2129.9,2128.9,2.08665358]
[1772713156578,2.03157916,2129.9,2128.8,1.503]
[1772713156812,3.20535669,2129.9,2128.9,1.17431537]
[1772713157210,3.20535669,2129.9,2129.0,2.08665358]
[1772713157711,1.17377753,2129.9,2129.0,2.08665358]
[1772713158597,2.03157916,2129.8,2128.9,1.17431537]
[1772713159228,3.28990102,2130.1,2129.0,2.03006371]
[1772713159537,1.17370892,2130.0,2129.0,2.03006371]
[1772713159697,0.001,2130.3,2129.0,2.03006371]
[1772713159897,1.17454736,2130.3,2129.2,2.03006371]
[1772713160106,3.29073946,2130.3,2129.2,2.03006371]
[1772713160309,2.1161921,2130.2,2129.2,2.03006371]
[1772713160909,2.1161921,2130.2,2128.9,3.20437908]
[1772713161335,1.17365381,2130.1,2128.9,3.20437908]
[1772713161549,2.1161921,2130.0,2128.9,3.20437908]
[1772713162497,2.1161921,2130.0,2129.0,2.03006371]
[1772713163431,2.1161921,2130.0,2129.1,1.17420506]
[1772713163732,3.28990672,2130.0,2129.1,1.17420506]
[1772713163932,2.1161921,2130.0,2129.1,3.20426877]
[1772713164238,0.001,2130.3,2129.2,2.03006371]
[1772713164239,3.29076221,2130.3,2129.2,2.03006371]
[1772713164451,3.29073891,2130.3,2129.2,2.03006371]
[1772713164603,2.1171921,2130.3,2129.2,2.03006371]
[1772713164797,0.001,2130.3,2129.4,2.03006371]
[1772713164998,0.001,2130.3,2129.6,2.03006371]
[1772713165302,1.17323335,2130.9,2129.6,2.03006371]
[1772713165502,1.17323335,2130.9,2129.8,2.03006371]